[Event "Titled Tuesday Blitz January 10 Late 2023"]
[White "Svane, Rasmus"]
[Black "reevecanada"]
[WhiteFideId "4657101"]
[WhiteElo "2623"]
[BlackElo "2497"]
[Result "1-0"]
[Round "01"]
[TimeControl "180+2"]
[Date "2023.01.10"]
[WhiteClock "0:00:05"]
[BlackClock "0:00:48"]

1. Nf3 {[%clk 0:00:00]}  d5 {[%clk 0:00:00]} 2. g3 {[%clk 0:02:52]}  c5 {[%clk 0:02:59]} 3. Bg2 {[%clk 0:02:50]}  Nc6 {[%clk 0:02:58]} 4. d4 {[%clk 0:02:44]}  cxd4 {[%clk 0:02:57]} 5. Nxd4 {[%clk 0:02:44]}  Nf6 {[%clk 0:02:57]} 6. O-O {[%clk 0:02:45]}  e6 {[%clk 0:02:56]} 7. c4 {[%clk 0:02:44]}  Bc5 {[%clk 0:02:55]} 8. Nxc6 {[%clk 0:02:44]}  bxc6 {[%clk 0:02:52]} 9. Qc2 {[%clk 0:02:43]}  Bb6 {[%clk 0:02:53]} 10. Nc3 {[%clk 0:02:43]}  O-O {[%clk 0:02:52]} 11. Na4 {[%clk 0:02:38]}  Bc7 {[%clk 0:02:51]} 12. b3 {[%clk 0:02:38]}  Ba6 {[%clk 0:02:50]} 13. Nc5 {[%clk 0:02:36]}  Bc8 {[%clk 0:02:49]} 14. Bb2 {[%clk 0:02:32]}  Bd6 {[%clk 0:02:45]} 15. cxd5 {[%clk 0:02:27]}  cxd5 {[%clk 0:02:45]} 16. e4 {[%clk 0:02:19]}  Qc7 {[%clk 0:02:43]} 17. Bxf6 {[%clk 0:02:19]}  Qxc5 {[%clk 0:02:41]} 18. Qxc5 {[%clk 0:01:41]}  Bxc5 {[%clk 0:02:39]} 19. Bb2 {[%clk 0:01:39]}  Bb7 {[%clk 0:02:39]} 20. exd5 {[%clk 0:01:36]}  exd5 {[%clk 0:02:37]} 21. Rad1 {[%clk 0:01:35]}  Rad8 {[%clk 0:02:36]} 22. Bd4 {[%clk 0:01:30]}  Bb6 {[%clk 0:02:35]} 23. Bxb6 {[%clk 0:01:29]}  axb6 {[%clk 0:02:30]} 24. Rd4 {[%clk 0:01:28]}  Rd7 {[%clk 0:02:31]} 25. Rfd1 {[%clk 0:01:29]}  Rfd8 {[%clk 0:02:30]} 26. a4 {[%clk 0:01:29]}  Ba8 {[%clk 0:02:31]} 27. h4 {[%clk 0:01:25]}  g6 {[%clk 0:02:28]} 28. Rb4 {[%clk 0:01:18]}  Rd6 {[%clk 0:02:26]} 29. Rdd4 {[%clk 0:01:14]}  Kg7 {[%clk 0:02:25]} 30. Rb5 {[%clk 0:01:14]}  R8d7 {[%clk 0:02:24]} 31. Rdb4 {[%clk 0:01:14]}  Re6 {[%clk 0:02:21]} 32. Bf3 {[%clk 0:01:11]}  Rdd6 {[%clk 0:02:16]} 33. Rd4 {[%clk 0:01:03]}  Re5 {[%clk 0:02:11]} 34. Kg2 {[%clk 0:00:53]}  h5 {[%clk 0:02:08]} 35. b4 {[%clk 0:00:53]}  Kf6 {[%clk 0:02:07]} 36. a5 {[%clk 0:00:49]}  bxa5 {[%clk 0:02:05]} 37. bxa5 {[%clk 0:00:49]}  Ke6 {[%clk 0:02:05]} 38. Rb8 {[%clk 0:00:50]}  Ra6 {[%clk 0:02:03]} 39. Rf4 {[%clk 0:00:49]}  Ra7 {[%clk 0:02:01]} 40. Re8+ {[%clk 0:00:35]}  Kd6 {[%clk 0:01:54]} 41. Rf6+ {[%clk 0:00:30]}  Re6 {[%clk 0:01:53]} 42. Rexe6+ {[%clk 0:00:30]}  fxe6 {[%clk 0:01:52]} 43. Rxg6 {[%clk 0:00:30]}  Rxa5 {[%clk 0:01:52]} 44. Bxh5 {[%clk 0:00:30]}  Ra3 {[%clk 0:01:52]} 45. Bf3 {[%clk 0:00:31]}  Bc6 {[%clk 0:01:49]} 46. h5 {[%clk 0:00:30]}  Bd7 {[%clk 0:01:49]} 47. h6 {[%clk 0:00:29]}  Ra8 {[%clk 0:01:42]} 48. Bg4 {[%clk 0:00:29]}  Rh8 {[%clk 0:01:38]} 49. f4 {[%clk 0:00:22]}  d4 {[%clk 0:01:35]} 50. Kf2 {[%clk 0:00:21]}  Ke7 {[%clk 0:01:30]} 51. Rg7+ {[%clk 0:00:19]}  Kd8 {[%clk 0:01:27]} 52. h7 {[%clk 0:00:18]}  Be8 {[%clk 0:01:25]} 53. Bxe6 {[%clk 0:00:18]}  d3 {[%clk 0:01:13]} 54. Ke3 {[%clk 0:00:18]}  d2 {[%clk 0:01:12]} 55. Kxd2 {[%clk 0:00:18]}  Bf7 {[%clk 0:00:57]} 56. Rxf7 {[%clk 0:00:18]}  Ke8 {[%clk 0:00:39]} 57. Rg7 {[%clk 0:00:16]}  Kd8 {[%clk 0:00:40]} 58. Rg8+ {[%clk 0:00:15]}  Ke7 {[%clk 0:00:39]} 59. Rxh8 {[%clk 0:00:15]}  Kxe6 {[%clk 0:00:40]} 60. Rg8 {[%clk 0:00:16]}  Kf7 {[%clk 0:00:41]} 61. h8=Q {[%clk 0:00:15]}  Ke6 {[%clk 0:00:42]} 62. Ke3 {[%clk 0:00:16]}  Kf7 {[%clk 0:00:40]} 63. Rg7+ {[%clk 0:00:15]}  Kf6 {[%clk 0:00:41]} 64. Qf8+ {[%clk 0:00:15]}  Ke6 {[%clk 0:00:41]} 65. Re7+ {[%clk 0:00:14]}  Kd6 {[%clk 0:00:41]} 66. g4 {[%clk 0:00:15]}  Kc6 {[%clk 0:00:42]} 67. g5 {[%clk 0:00:15]}  Kb6 {[%clk 0:00:43]} 68. g6 {[%clk 0:00:16]}  Ka6 {[%clk 0:00:43]} 69. g7 {[%clk 0:00:17]}  Kb6 {[%clk 0:00:44]} 70. f5 {[%clk 0:00:17]}  Kc6 {[%clk 0:00:45]} 71. f6 {[%clk 0:00:18]}  Kb6 {[%clk 0:00:45]} 72. f7 {[%clk 0:00:19]}  Ka6 {[%clk 0:00:46]} 73. Qe8 {[%clk 0:00:19]}  Kb6 {[%clk 0:00:47]} 74. Rd7 {[%clk 0:00:19]}  Kc6 {[%clk 0:00:48]} 75. f8=Q {[%clk 0:00:19]}  Kb6 {[%clk 0:00:49]} 76. g8=Q {[%clk 0:00:19]}  Ka6 {[%clk 0:00:49]} 77. Qge6+ {[%clk 0:00:19]}  Ka5 {[%clk 0:00:50]} 78. Qff5+ {[%clk 0:00:16]}  Ka4 {[%clk 0:00:50]} 79. Rd3+ {[%clk 0:00:15]}  Kb4 {[%clk 0:00:51]} 80. Q8e7+ {[%clk 0:00:14]}  Ka4 {[%clk 0:00:50]} 81. Qfe4+ {[%clk 0:00:10]}  Kb5 {[%clk 0:00:49]} 82. Q6f5+ {[%clk 0:00:07]}  Kb6 {[%clk 0:00:49]} 83. Qef6+ {[%clk 0:00:07]}  Kc7 {[%clk 0:00:49]} 84. Rd7+ {[%clk 0:00:07]}  Kb8 {[%clk 0:00:48]} 85. Qe8# {[%clk 0:00:05]} 1-0


[Site "https://www.chess.com"]

[Event "Titled Tuesday Blitz January 10 Late 2023"]
[White "Mamedyarov, Shakhriyar"]
[Black "Khandelwal, Ankush"]
[WhiteFideId "13401319"]
[BlackFideId "413470"]
[WhiteElo "2738"]
[BlackElo "2205"]
[Result "1-0"]
[Round "01"]
[TimeControl "180+2"]
[Date "2023.01.10"]
[WhiteClock "0:01:59"]
[BlackClock "0:00:21"]

1. d4 {[%clk 0:00:00]}  Nf6 {[%clk 0:00:00]} 2. Bg5 {[%clk 0:03:00]}  d5 {[%clk 0:02:57]} 3. Bxf6 {[%clk 0:02:58]}  gxf6 {[%clk 0:02:54]} 4. c4 {[%clk 0:02:55]}  dxc4 {[%clk 0:02:47]} 5. e3 {[%clk 0:02:55]}  c5 {[%clk 0:02:19]} 6. d5 {[%clk 0:02:52]}  Bg7 {[%clk 0:02:08]} 7. Bxc4 {[%clk 0:02:49]}  f5 {[%clk 0:01:59]} 8. Nc3 {[%clk 0:02:47]}  O-O {[%clk 0:01:55]} 9. Nge2 {[%clk 0:02:46]}  Nd7 {[%clk 0:01:51]} 10. O-O {[%clk 0:02:46]}  a6 {[%clk 0:01:45]} 11. a4 {[%clk 0:02:45]}  Ne5 {[%clk 0:01:35]} 12. Bb3 {[%clk 0:02:44]}  Bd7 {[%clk 0:01:34]} 13. Ng3 {[%clk 0:02:36]}  b5 {[%clk 0:01:24]} 14. Bc2 {[%clk 0:02:18]}  e6 {[%clk 0:01:18]} 15. axb5 {[%clk 0:02:09]}  axb5 {[%clk 0:01:08]} 16. Rxa8 {[%clk 0:02:02]}  Qxa8 {[%clk 0:01:07]} 17. dxe6 {[%clk 0:02:03]}  Bxe6 {[%clk 0:00:51]} 18. Nxf5 {[%clk 0:02:04]}  Bxf5 {[%clk 0:00:24]} 19. Bxf5 {[%clk 0:02:02]}  b4 {[%clk 0:00:21]} 20. Nd5 {[%clk 0:02:03]}  Rd8 {[%clk 0:00:21]} 21. e4 {[%clk 0:01:58]}  Qa2 {[%clk 0:00:21]} 22. Ne7+ {[%clk 0:01:59]} 1-0


[Site "https://www.chess.com"]

[Event "Titled Tuesday Blitz January 10 Late 2023"]
[White "Remizov, Yaroslav"]
[Black "Fernandez Garcia, Gumersindo"]
[WhiteFideId "34134015"]
[BlackFideId "24516740"]
[WhiteElo "2421"]
[BlackElo "2160"]
[Result "1/2-1/2"]
[Round "01"]
[TimeControl "180+2"]
[Date "2023.01.10"]
[WhiteClock "0:00:06"]
[BlackClock "0:00:06"]

1. e4 {[%clk 0:00:00]}  c5 {[%clk 0:00:00]} 2. Nf3 {[%clk 0:02:59]}  g6 {[%clk 0:02:55]} 3. c3 {[%clk 0:02:59]}  Bg7 {[%clk 0:02:44]} 4. d4 {[%clk 0:02:55]}  cxd4 {[%clk 0:02:43]} 5. cxd4 {[%clk 0:02:55]}  d5 {[%clk 0:02:43]} 6. exd5 {[%clk 0:02:55]}  Nf6 {[%clk 0:02:43]} 7. Nc3 {[%clk 0:02:53]}  O-O {[%clk 0:02:42]} 8. Qb3 {[%clk 0:02:51]}  Nbd7 {[%clk 0:02:41]} 9. Bg5 {[%clk 0:02:46]}  Nb6 {[%clk 0:02:38]} 10. Bxf6 {[%clk 0:02:33]}  Bxf6 {[%clk 0:02:36]} 11. a4 {[%clk 0:02:32]}  Bg4 {[%clk 0:02:35]} 12. a5 {[%clk 0:02:32]}  Nd7 {[%clk 0:02:21]} 13. Be2 {[%clk 0:02:28]}  Bxf3 {[%clk 0:02:16]} 14. Bxf3 {[%clk 0:02:18]}  Bxd4 {[%clk 0:02:14]} 15. O-O {[%clk 0:02:19]}  Ne5 {[%clk 0:02:15]} 16. Be2 {[%clk 0:02:17]}  Bxc3 {[%clk 0:02:10]} 17. bxc3 {[%clk 0:01:55]}  Qc7 {[%clk 0:01:53]} 18. Rfb1 {[%clk 0:01:55]}  b6 {[%clk 0:01:43]} 19. axb6 {[%clk 0:01:52]}  axb6 {[%clk 0:01:18]} 20. Rxa8 {[%clk 0:01:42]}  Rxa8 {[%clk 0:01:19]} 21. g3 {[%clk 0:01:38]}  Rc8 {[%clk 0:01:19]} 22. c4 {[%clk 0:01:28]}  Qc5 {[%clk 0:01:14]} 23. Qxb6 {[%clk 0:01:13]}  Qxb6 {[%clk 0:01:08]} 24. Rxb6 {[%clk 0:01:08]}  Nxc4 {[%clk 0:01:05]} 25. Rb7 {[%clk 0:01:09]}  Kf8 {[%clk 0:01:05]} 26. Bxc4 {[%clk 0:01:04]}  Rxc4 {[%clk 0:01:01]} 27. Rb8+ {[%clk 0:00:51]}  Kg7 {[%clk 0:00:59]} 28. Rd8 {[%clk 0:00:47]}  Rd4 {[%clk 0:00:59]} 29. f4 {[%clk 0:00:44]}  h5 {[%clk 0:00:57]} 30. Kg2 {[%clk 0:00:44]}  Rd2+ {[%clk 0:00:54]} 31. Kh3 {[%clk 0:00:43]}  Kf6 {[%clk 0:00:53]} 32. Rd7 {[%clk 0:00:44]}  Kg7 {[%clk 0:00:52]} 33. Rxe7 {[%clk 0:00:43]}  Rxd5 {[%clk 0:00:49]} 34. Kh4 {[%clk 0:00:41]}  Rd2 {[%clk 0:00:48]} 35. h3 {[%clk 0:00:41]}  Rd4 {[%clk 0:00:48]} 36. Re5 {[%clk 0:00:41]}  Ra4 {[%clk 0:00:46]} 37. Rb5 {[%clk 0:00:39]}  f6 {[%clk 0:00:43]} 38. Rb6 {[%clk 0:00:38]}  Rc4 {[%clk 0:00:40]} 39. Rd6 {[%clk 0:00:38]}  Ra4 {[%clk 0:00:36]} 40. Rb6 {[%clk 0:00:37]}  Rc4 {[%clk 0:00:36]} 41. Ra6 {[%clk 0:00:30]}  Rb4 {[%clk 0:00:35]} 42. g4 {[%clk 0:00:30]}  Rxf4 {[%clk 0:00:35]} 43. Kg3 {[%clk 0:00:22]}  Rb4 {[%clk 0:00:32]} 44. gxh5 {[%clk 0:00:22]}  gxh5 {[%clk 0:00:30]} 45. Ra8 {[%clk 0:00:22]}  Kg6 {[%clk 0:00:30]} 46. Rg8+ {[%clk 0:00:22]}  Kf5 {[%clk 0:00:31]} 47. Ra8 {[%clk 0:00:22]}  h4+ {[%clk 0:00:31]} 48. Kg2 {[%clk 0:00:22]}  Kg5 {[%clk 0:00:28]} 49. Rg8+ {[%clk 0:00:22]}  Kf5 {[%clk 0:00:27]} 50. Rh8 {[%clk 0:00:21]}  Rb2+ {[%clk 0:00:28]} 51. Kg1 {[%clk 0:00:21]}  Kg5 {[%clk 0:00:27]} 52. Rg8+ {[%clk 0:00:20]}  Kf5 {[%clk 0:00:27]} 53. Rg4 {[%clk 0:00:20]}  Ke5 {[%clk 0:00:27]} 54. Rxh4 {[%clk 0:00:20]}  f5 {[%clk 0:00:21]} 55. Rc4 {[%clk 0:00:20]}  f4 {[%clk 0:00:22]} 56. Kf1 {[%clk 0:00:19]}  Rh2 {[%clk 0:00:22]} 57. Rc3 {[%clk 0:00:17]}  Kf5 {[%clk 0:00:21]} 58. Kg1 {[%clk 0:00:17]}  Rd2 {[%clk 0:00:20]} 59. Ra3 {[%clk 0:00:17]}  Ke4 {[%clk 0:00:20]} 60. h4 {[%clk 0:00:17]}  Kf5 {[%clk 0:00:20]} 61. h5 {[%clk 0:00:17]}  Kg5 {[%clk 0:00:19]} 62. Ra5+ {[%clk 0:00:15]}  Kg4 {[%clk 0:00:19]} 63. h6 {[%clk 0:00:15]}  Rd7 {[%clk 0:00:19]} 64. Kf2 {[%clk 0:00:16]}  Rd2+ {[%clk 0:00:19]} 65. Ke1 {[%clk 0:00:14]}  Rh2 {[%clk 0:00:18]} 66. Kf1 {[%clk 0:00:14]}  Kg3 {[%clk 0:00:18]} 67. Ra6 {[%clk 0:00:13]}  Rh1+ {[%clk 0:00:16]} 68. Ke2 {[%clk 0:00:12]}  f3+ {[%clk 0:00:14]} 69. Kd2 {[%clk 0:00:12]}  f2 {[%clk 0:00:15]} 70. Rg6+ {[%clk 0:00:11]}  Kf3 {[%clk 0:00:15]} 71. Rf6+ {[%clk 0:00:12]}  Kg2 {[%clk 0:00:07]} 72. Rg6+ {[%clk 0:00:12]}  Kf1 {[%clk 0:00:08]} 73. Rf6 {[%clk 0:00:10]}  Rh5 {[%clk 0:00:09]} 74. Ke3 {[%clk 0:00:09]}  Re5+ {[%clk 0:00:08]} 75. Kf4 {[%clk 0:00:07]}  Re8 {[%clk 0:00:08]} 76. Kg5 {[%clk 0:00:06]}  Kg1 {[%clk 0:00:08]} 77. h7 {[%clk 0:00:07]}  Rh8 {[%clk 0:00:08]} 78. Kh6 {[%clk 0:00:06]}  f1=Q {[%clk 0:00:06]} 79. Rxf1+ {[%clk 0:00:05]}  Kxf1 {[%clk 0:00:05]} 80. Kg7 {[%clk 0:00:06]}  Rxh7+ {[%clk 0:00:06]} 81. Kxh7 {[%clk 0:00:06]} 1/2-1/2


[Site "https://www.chess.com"]

[Event "Titled Tuesday Blitz January 10 Late 2023"]
[White "Galperin, Platon"]
[Black "Urbina Perez, Juan Antonio"]
[WhiteFideId "14165414"]
[BlackFideId "2217368"]
[WhiteElo "2528"]
[BlackElo "2266"]
[Result "1-0"]
[Round "01"]
[TimeControl "180+2"]
[Date "2023.01.10"]
[WhiteClock "0:00:47"]
[BlackClock "0:00:29"]

1. b3 {[%clk 0:00:00]}  d5 {[%clk 0:00:00]} 2. Bb2 {[%clk 0:02:57]}  Bf5 {[%clk 0:02:58]} 3. Nf3 {[%clk 0:02:56]}  e6 {[%clk 0:02:59]} 4. e3 {[%clk 0:02:53]}  h6 {[%clk 0:02:59]} 5. Bd3 {[%clk 0:02:53]}  Bxd3 {[%clk 0:02:58]} 6. cxd3 {[%clk 0:02:53]}  Nf6 {[%clk 0:02:56]} 7. Qc2 {[%clk 0:02:54]}  c6 {[%clk 0:02:55]} 8. Nc3 {[%clk 0:02:54]}  Nbd7 {[%clk 0:02:54]} 9. Ne2 {[%clk 0:02:55]}  Bd6 {[%clk 0:02:54]} 10. h3 {[%clk 0:02:55]}  Qe7 {[%clk 0:02:54]} 11. g4 {[%clk 0:02:55]}  Ba3 {[%clk 0:02:54]} 12. Bc3 {[%clk 0:02:55]}  Bb4 {[%clk 0:02:53]} 13. Bd4 {[%clk 0:02:53]}  Bc5 {[%clk 0:02:53]} 14. Ng3 {[%clk 0:02:50]}  Bxd4 {[%clk 0:02:49]} 15. Nxd4 {[%clk 0:02:40]}  Qc5 {[%clk 0:02:47]} 16. Qb2 {[%clk 0:02:41]}  O-O-O {[%clk 0:02:44]} 17. b4 {[%clk 0:02:40]}  Qd6 {[%clk 0:02:22]} 18. Rc1 {[%clk 0:02:38]}  Kb8 {[%clk 0:02:21]} 19. a4 {[%clk 0:02:34]}  g6 {[%clk 0:02:21]} 20. b5 {[%clk 0:02:32]}  c5 {[%clk 0:02:21]} 21. Nc6+ {[%clk 0:02:29]}  Ka8 {[%clk 0:02:21]} 22. Nxd8 {[%clk 0:02:28]}  Rxd8 {[%clk 0:02:14]} 23. f4 {[%clk 0:02:27]}  g5 {[%clk 0:02:15]} 24. O-O {[%clk 0:02:19]}  h5 {[%clk 0:02:10]} 25. Nxh5 {[%clk 0:02:19]}  Nxh5 {[%clk 0:02:07]} 26. gxh5 {[%clk 0:01:59]}  gxf4 {[%clk 0:02:06]} 27. Rxf4 {[%clk 0:02:00]}  Rg8+ {[%clk 0:02:05]} 28. Kh1 {[%clk 0:02:01]}  e5 {[%clk 0:02:05]} 29. Rf2 {[%clk 0:01:59]}  Qe6 {[%clk 0:02:03]} 30. Kh2 {[%clk 0:01:27]}  e4 {[%clk 0:01:58]} 31. dxe4 {[%clk 0:01:27]}  dxe4 {[%clk 0:01:39]} 32. Rg1 {[%clk 0:01:27]}  Re8 {[%clk 0:01:30]} 33. Qg7 {[%clk 0:01:24]}  Ne5 {[%clk 0:01:25]} 34. h6 {[%clk 0:01:23]}  Nf3+ {[%clk 0:01:23]} 35. Rxf3 {[%clk 0:00:55]}  exf3 {[%clk 0:01:23]} 36. h7 {[%clk 0:00:55]}  f2 {[%clk 0:01:24]} 37. h8=Q {[%clk 0:00:56]}  fxg1=Q+ {[%clk 0:01:03]} 38. Kxg1 {[%clk 0:00:54]}  b6 {[%clk 0:00:55]} 39. Qhh6 {[%clk 0:00:55]}  Qd5 {[%clk 0:00:44]} 40. Qc6+ {[%clk 0:00:49]}  Qxc6 {[%clk 0:00:29]} 41. bxc6 {[%clk 0:00:47]} 1-0


[Site "https://www.chess.com"]

[Event "Titled Tuesday Blitz January 10 Late 2023"]
[White "Malka, Samuel"]
[Black "Kravtsiv, Martyn"]
[WhiteFideId "20643675"]
[BlackFideId "14113147"]
[WhiteElo "2165"]
[BlackElo "2598"]
[Result "1/2-1/2"]
[Round "01"]
[TimeControl "180+2"]
[Date "2023.01.10"]
[WhiteClock "0:00:12"]
[BlackClock "0:00:19"]

1. d4 {[%clk 0:00:00]}  d5 {[%clk 0:00:00]} 2. c4 {[%clk 0:02:57]}  e6 {[%clk 0:02:59]} 3. Nf3 {[%clk 0:02:57]}  Nf6 {[%clk 0:02:58]} 4. g3 {[%clk 0:02:58]}  Bb4+ {[%clk 0:02:57]} 5. Bd2 {[%clk 0:02:58]}  Be7 {[%clk 0:02:56]} 6. Bg2 {[%clk 0:02:57]}  O-O {[%clk 0:02:56]} 7. O-O {[%clk 0:02:57]}  Nbd7 {[%clk 0:02:56]} 8. Qc2 {[%clk 0:02:57]}  c6 {[%clk 0:02:55]} 9. Rd1 {[%clk 0:02:54]}  a5 {[%clk 0:02:55]} 10. Bf4 {[%clk 0:02:52]}  b5 {[%clk 0:02:54]} 11. b3 {[%clk 0:02:38]}  bxc4 {[%clk 0:02:47]} 12. bxc4 {[%clk 0:02:21]}  Ba6 {[%clk 0:02:42]} 13. Nbd2 {[%clk 0:02:20]}  Rc8 {[%clk 0:02:43]} 14. e4 {[%clk 0:02:15]}  Nxe4 {[%clk 0:02:26]} 15. Nxe4 {[%clk 0:01:58]}  dxe4 {[%clk 0:02:14]} 16. Nd2 {[%clk 0:01:54]}  f5 {[%clk 0:02:15]} 17. h4 {[%clk 0:01:46]}  g5 {[%clk 0:02:11]} 18. hxg5 {[%clk 0:01:27]}  Bxg5 {[%clk 0:01:49]} 19. Bd6 {[%clk 0:01:26]}  Rf7 {[%clk 0:01:50]} 20. c5 {[%clk 0:01:12]}  Bd3 {[%clk 0:01:44]} 21. Qb3 {[%clk 0:01:12]}  Qe8 {[%clk 0:01:25]} 22. Nc4 {[%clk 0:01:04]}  Rg7 {[%clk 0:01:24]} 23. Rxd3 {[%clk 0:00:59]}  exd3 {[%clk 0:01:10]} 24. Qxd3 {[%clk 0:00:55]}  Qg6 {[%clk 0:01:09]} 25. Nxa5 {[%clk 0:00:56]}  Nf6 {[%clk 0:01:02]} 26. Nxc6 {[%clk 0:00:46]}  Ng4 {[%clk 0:00:49]} 27. Ne5 {[%clk 0:00:41]}  Nxe5 {[%clk 0:00:49]} 28. Bxe5 {[%clk 0:00:35]}  Bf6 {[%clk 0:00:43]} 29. Bd6 {[%clk 0:00:36]}  f4 {[%clk 0:00:42]} 30. Qxg6 {[%clk 0:00:28]}  Rxg6 {[%clk 0:00:35]} 31. Rd1 {[%clk 0:00:27]}  fxg3 {[%clk 0:00:34]} 32. fxg3 {[%clk 0:00:19]}  Rg4 {[%clk 0:00:34]} 33. Bh3 {[%clk 0:00:20]}  Rxd4 {[%clk 0:00:32]} 34. Bxe6+ {[%clk 0:00:19]}  Kg7 {[%clk 0:00:28]} 35. Rxd4 {[%clk 0:00:14]}  Bxd4+ {[%clk 0:00:28]} 36. Kg2 {[%clk 0:00:13]}  Re8 {[%clk 0:00:28]} 37. Bd5 {[%clk 0:00:14]}  Be5 {[%clk 0:00:26]} 38. Bc6 {[%clk 0:00:14]}  Re6 {[%clk 0:00:24]} 39. Bd7 {[%clk 0:00:11]}  Bxd6 {[%clk 0:00:23]} 40. Bxe6 {[%clk 0:00:11]}  Bxc5 {[%clk 0:00:21]} 41. Bd5 {[%clk 0:00:11]}  Kf6 {[%clk 0:00:21]} 42. Kf3 {[%clk 0:00:11]}  h6 {[%clk 0:00:20]} 43. Bb3 {[%clk 0:00:11]}  Ba3 {[%clk 0:00:20]} 44. Kg4 {[%clk 0:00:12]}  Kg7 {[%clk 0:00:18]} 45. Kh5 {[%clk 0:00:12]}  Bd6 {[%clk 0:00:18]} 46. Bc2 {[%clk 0:00:13]}  Bxg3 {[%clk 0:00:18]} 47. a4 {[%clk 0:00:13]}  Bc7 {[%clk 0:00:17]} 48. Bd1 {[%clk 0:00:13]}  Ba5 {[%clk 0:00:18]} 49. Bc2 {[%clk 0:00:11]}  Bb6 {[%clk 0:00:19]} 50. Bd1 {[%clk 0:00:11]}  Ba5 {[%clk 0:00:18]} 51. Bc2 {[%clk 0:00:12]}  Bb6 {[%clk 0:00:18]} 52. Bd1 {[%clk 0:00:12]}  Ba5 {[%clk 0:00:19]} 1/2-1/2


[Site "https://www.chess.com"]

[Event "Titled Tuesday Blitz January 10 Late 2023"]
[White "Svane, Frederik"]
[Black "Estrada Nieto, Julian"]
[WhiteFideId "12923044"]
[BlackFideId "5101018"]
[WhiteElo "2600"]
[BlackElo "2215"]
[Result "1-0"]
[Round "01"]
[TimeControl "180+2"]
[Date "2023.01.10"]
[WhiteClock "0:00:49"]
[BlackClock "0:00:05"]

1. c4 {[%clk 0:00:00]}  e5 {[%clk 0:00:00]} 2. g3 {[%clk 0:03:00]}  Nf6 {[%clk 0:02:59]} 3. Bg2 {[%clk 0:03:00]}  d5 {[%clk 0:02:59]} 4. cxd5 {[%clk 0:03:00]}  Nxd5 {[%clk 0:03:00]} 5. Nc3 {[%clk 0:03:00]}  Nb6 {[%clk 0:03:01]} 6. Nf3 {[%clk 0:03:01]}  Nc6 {[%clk 0:03:01]} 7. O-O {[%clk 0:03:02]}  Be7 {[%clk 0:03:01]} 8. d3 {[%clk 0:03:02]}  O-O {[%clk 0:03:02]} 9. a3 {[%clk 0:03:03]}  Be6 {[%clk 0:03:03]} 10. Be3 {[%clk 0:03:04]}  a5 {[%clk 0:03:01]} 11. Rc1 {[%clk 0:03:04]}  f5 {[%clk 0:02:48]} 12. Bxb6 {[%clk 0:02:57]}  cxb6 {[%clk 0:02:37]} 13. Nd2 {[%clk 0:02:51]}  Bc5 {[%clk 0:02:36]} 14. Na4 {[%clk 0:02:52]}  Qd6 {[%clk 0:02:00]} 15. Nc4 {[%clk 0:02:36]}  Bxc4 {[%clk 0:01:33]} 16. Rxc4 {[%clk 0:02:25]}  Bd4 {[%clk 0:01:33]} 17. Qb3 {[%clk 0:02:14]}  Kh8 {[%clk 0:01:22]} 18. e3 {[%clk 0:02:04]}  Bc5 {[%clk 0:01:20]} 19. Nxc5 {[%clk 0:01:44]}  bxc5 {[%clk 0:01:06]} 20. Qxb7 {[%clk 0:01:43]}  Rac8 {[%clk 0:01:05]} 21. Rfc1 {[%clk 0:01:43]}  Rc7 {[%clk 0:00:55]} 22. Qb6 {[%clk 0:01:38]}  Rb8 {[%clk 0:00:54]} 23. Qxc5 {[%clk 0:01:35]}  Qf6 {[%clk 0:00:40]} 24. Bxc6 {[%clk 0:01:35]}  Rbc8 {[%clk 0:00:29]} 25. Qxa5 {[%clk 0:01:32]}  h6 {[%clk 0:00:29]} 26. Bd5 {[%clk 0:01:22]}  Rxc4 {[%clk 0:00:25]} 27. Rxc4 {[%clk 0:01:21]}  Rd8 {[%clk 0:00:15]} 28. Rc6 {[%clk 0:01:21]}  Qe7 {[%clk 0:00:13]} 29. Qc5 {[%clk 0:01:20]}  Qd7 {[%clk 0:00:12]} 30. Be6 {[%clk 0:01:20]}  Qxd3 {[%clk 0:00:11]} 31. Rc8 {[%clk 0:00:57]}  e4 {[%clk 0:00:10]} 32. Rxd8+ {[%clk 0:00:57]}  Qxd8 {[%clk 0:00:06]} 33. Qxf5 {[%clk 0:00:49]}  Qd1+ {[%clk 0:00:05]} 34. Kg2 {[%clk 0:00:49]} 1-0


[Site "https://www.chess.com"]

[Event "Titled Tuesday Blitz January 10 Late 2023"]
[White "Zakhartsov, Vladimir"]
[Black "Pasti, Aron"]
[WhiteFideId "4145097"]
[BlackFideId "785857"]
[WhiteElo "2552"]
[BlackElo "2361"]
[Result "1-0"]
[Round "01"]
[TimeControl "180+2"]
[Date "2023.01.10"]
[WhiteClock "0:00:09"]
[BlackClock "0:00:10"]

1. e4 {[%clk 0:00:00]}  c5 {[%clk 0:00:00]} 2. Nf3 {[%clk 0:02:59]}  e6 {[%clk 0:03:00]} 3. g3 {[%clk 0:02:58]}  Nc6 {[%clk 0:03:00]} 4. Bg2 {[%clk 0:02:56]}  d6 {[%clk 0:03:00]} 5. O-O {[%clk 0:02:56]}  Nf6 {[%clk 0:02:55]} 6. Qe2 {[%clk 0:02:55]}  Be7 {[%clk 0:02:55]} 7. c3 {[%clk 0:02:52]}  O-O {[%clk 0:02:55]} 8. d4 {[%clk 0:02:52]}  e5 {[%clk 0:02:46]} 9. dxc5 {[%clk 0:02:52]}  dxc5 {[%clk 0:02:46]} 10. Na3 {[%clk 0:02:43]}  a6 {[%clk 0:02:45]} 11. Nc4 {[%clk 0:02:44]}  Qc7 {[%clk 0:02:42]} 12. a4 {[%clk 0:02:43]}  Be6 {[%clk 0:02:42]} 13. Ng5 {[%clk 0:02:39]}  Bg4 {[%clk 0:02:40]} 14. Bf3 {[%clk 0:02:26]}  Bxf3 {[%clk 0:02:33]} 15. Nxf3 {[%clk 0:02:19]}  b5 {[%clk 0:02:27]} 16. Ne3 {[%clk 0:02:20]}  Rfd8 {[%clk 0:02:27]} 17. Nd5 {[%clk 0:02:18]}  Nxd5 {[%clk 0:02:16]} 18. exd5 {[%clk 0:02:01]}  Na5 {[%clk 0:01:54]} 19. axb5 {[%clk 0:02:00]}  axb5 {[%clk 0:01:50]} 20. Qxb5 {[%clk 0:01:52]}  e4 {[%clk 0:01:44]} 21. Bf4 {[%clk 0:01:45]}  Bd6 {[%clk 0:01:24]} 22. Bxd6 {[%clk 0:01:31]}  Qxd6 {[%clk 0:01:18]} 23. Rxa5 {[%clk 0:01:31]}  Rxa5 {[%clk 0:01:03]} 24. Qxa5 {[%clk 0:01:09]}  exf3 {[%clk 0:01:00]} 25. c4 {[%clk 0:01:07]}  g5 {[%clk 0:01:01]} 26. Re1 {[%clk 0:01:06]}  Qd7 {[%clk 0:00:38]} 27. Qc3 {[%clk 0:00:51]}  Qf5 {[%clk 0:00:29]} 28. h3 {[%clk 0:00:36]}  h5 {[%clk 0:00:25]} 29. Re5 {[%clk 0:00:16]}  Qb1+ {[%clk 0:00:16]} 30. Kh2 {[%clk 0:00:13]}  f6 {[%clk 0:00:11]} 31. Re6 {[%clk 0:00:13]}  g4 {[%clk 0:00:10]} 32. Qxf6 {[%clk 0:00:09]} 1-0


[Site "https://www.chess.com"]